{"text_format":"1","workbook":"xlsx","n_sheets":12,"sheets":["Instructions","Data Sheet 1","Data Sheet 2","Data Sheet 3","Data Sheet 4","Data Sheet 5","Data Sheet 6","Data Sheet 7","Data Sheet 8","Data Sheet 9","HeaderExport","Version"],"not_rendered":{"charts":0,"images":0,"macros":0,"external_links":0,"defined_names":209,"comments":9,"pivot_tables":0},"unopened":[],"bounds":{"document_bytes":16777216,"sheet_cells":100000,"rows_first":2000,"rows_last":500,"rows_between":2000,"halvings":0,"cell_chars":16384,"cell_head_chars":4096},"cells_cut":0,"cells_raw":0,"read":"whole","date_system":"1900"}

{"sheet":"Instructions","index":0,"n_rows":21,"n_cols":1,"rows_kept":21,"cut":false,"hidden":false,"merged":[]}
["ERT data entry spreadsheet"]
[]
["This workbook is designed for use during the collection of data with manual sampling methods.  It is not appropriate for use with instrumental methods. The workbook is composed of this instruction page, three data entry sheets, and a header export sheet.  The header export sheet is for agency use only."]
[]
["Each Data Sheet is composed of two sections, the header data section and the point data grid. The header data section has several subsections for entry of  the necessary data applying to a given run. The sections are:"]
[]
["The run identification section which contains data about the facility, the sampling location, method used and the testing operator. The fields labeled Plant, Sampling Location, and Method entered on Data Sheet 1 will be automatically copied into Data Sheet 2 and Data Sheet 3 and will not be editable there."]
[]
["The Equipment Identification section has fields to allow entry of the identification numbers for all equipment used during the run."]
[]
["The Filters section has fields to allow entry of the identification numbers for all filters used during the run."]
[]
["In the Calibration section the user should record the calibration values for the equipment used during the sampling."]
[]
["In the Ambient Conditions section the user should record the ambient pressures, temperatures and gas concentrations."]
[]
["Checks performed during the sampling should be recorded in the Checks section either as numeric values or Yes/No values as appropriate."]
[]
["The Impinger Water Weight, Vlc, will be calculated from the entered weights of the impingers and silica gel or it can be entered directly."]
[]
["All of the fields in the point data grid should be filled in for isokinetic methods with each row containing the data from a single point.. For non-isokinetic methods, only the fields with the green background shading should be filled in."]

{"sheet":"Data Sheet 1","index":1,"n_rows":23,"n_cols":18,"rows_kept":23,"cut":false,"hidden":false,"merged":[[8,1,8,2],[10,1,10,2],[11,1,11,2],[8,3,8,4],[9,3,9,4],[10,3,10,4],[11,3,11,4],[8,9,8,11],[21,17,22,17],[21,11,21,12],[14,9,14,10],[17,9,17,10],[18,9,18,10],[21,9,22,9],[21,10,22,10],[21,13,22,13],[9,9,9,11],[13,9,13,10],[19,13,19,15],[15,9,15,10],[16,9,16,10],[13,13,13,15],[19,9,19,10],[21,14,21,15],[21,16,22,16],[9,1,9,2],[21,1,22,1],[21,2,21,3],[19,1,19,2],[12,13,12,15],[14,1,14,2],[14,5,14,6],[12,1,12,2],[13,1,13,2],[21,6,22,6],[15,5,15,6],[16,5,16,6],[19,5,19,6],[18,5,18,6],[17,1,17,2],[18,1,18,2],[21,7,21,8],[21,5,22,5],[124,3,124,7],[21,4,22,4],[19,3,19,4],[1,2,1,13],[18,3,18,4],[17,3,17,4],[4,3,4,4],[4,6,4,7],[12,3,12,4],[13,3,13,4],[14,3,14,4],[3,3,3,5],[5,6,5,7],[8,5,8,7],[9,5,9,7],[10,5,10,7],[11,5,11,7],[4,9,4,11],[6,9,6,11],[7,1,7,4],[3,1,3,2],[4,1,4,2],[5,9,5,12],[5,3,5,4],[7,9,7,11],[5,1,5,2]]}
[]
[null,"Plant:"]
[]
[null,"Sampling Location:",null,null,null,null,null,"Method:"," ","Checks",null,null,"Pre","Mid","Post"]
[null,"Run No.:",null,null,null,"Testing Operator:","Sarah",null,null,"Vacuum (in Hg):"]
[null,"Run Date:",null,null,null,"Job Number:",null,null,null,"Leak Check Total Volume (ft3):"]
[null,null,null,null,null,null,null,null,null,"Leak Rate (cfm):"]
[null,"Equipment Identification",null,null,null,"Calibration",null,null,null,"Pitot (Yes/No):"]
[null,"Reagent Box:",null,null,null,"Meter Box Correction Factor, Y:",null,null,null,"Nozzle (Yes/No):"]
[null,"Unbilical Line:",null,null,null,"Meter Box pressure differential, ΔH@ (in H2O):",null,null,null,"Stack Thermocouple (Yes/No):"]
[null,"Stack Thermocouple ID: ",null,null,null,"Pitot tube coefficient, Cp:"]
[null,"Tedlar Bags:",null,null,null,"Nozzle diameter, Dn (in):"]
[null,"Orsat Pump:",null,null,null,null,null,null,null,"Moisture in:","ml H2O","Initial","Final","Micro-manometer Used?"]
[null,"Probe Length/Type:",null,null,null,"Ambient Conditions",null,null,null,"Impinger 1:",null,null,null,"Sensitivity (in. H2O)"]
[null,"Nozzle ID:",null,null,null,"Pbar (in. Hg):",null,null,null,"Impinger 2:"]
[null,null,null,null,null,"Temperature:",null,null,null,"Impinger 3:"]
[null,"Filters",null,null,null,"Pg (in. H2O):",null,null,null,"Impinger 4:"]
[null,"Filter No. 1:",null,null,null,"Concentrations",null,null,null,"Impinger 5:"]
[null,"Filter No. 2:",null,null,null,"O2 Concentration:",null,null,null,"Impinger 6:"]
[null,"Filter No. 3:",null,null,null,"CO2 Concentration:",null,null,null,"Silica Gel.:",null,null,null,"Impinger Water Weight, Vlc:",null,null,{"$f":"(M14-L14)+(M15-L15)+(M16-L16)+(M17-L17)+(M18-L18)+(M19-L19)+(M20-L20)","v":0}]
[]
[null,"Traverse Point No.","Sampling Time (min)",null,"Clock Time 24 hr","Dry Gas Meter Reading (Vm,ft3)","Velocity Head\n(ΔP in H2O)","Orfice Pressure Differential (ΔH, in H20)",null,"Stack Temperature °F","Probe Temperature °F","Filter Temperature °F",null,"Final exit Temperature °F","Dry Gas Meter Temperature °F",null,"Pump Vacuum (in. Hg)","Sample Rate"]
[null,null,"Begin","End",null,null,null,"Desired","Actual",null,null,"Inlet","Outlet",null," Inlet"," Outlet"]

{"sheet":"Data Sheet 2","index":2,"n_rows":23,"n_cols":18,"rows_kept":23,"cut":false,"hidden":false,"merged":[[124,3,124,7],[21,17,22,17],[19,13,19,15],[21,1,22,1],[21,2,21,3],[21,4,22,4],[21,5,22,5],[21,6,22,6],[21,7,21,8],[21,9,22,9],[21,10,22,10],[21,11,21,12],[21,13,22,13],[21,14,21,15],[21,16,22,16],[15,5,15,6],[15,9,15,10],[16,5,16,6],[16,9,16,10],[17,3,17,4],[17,9,17,10],[18,1,18,2],[18,3,18,4],[18,5,18,6],[18,9,18,10],[12,3,12,4],[12,13,12,15],[19,1,19,2],[19,3,19,4],[19,5,19,6],[19,9,19,10],[13,1,13,2],[13,3,13,4],[13,9,13,10],[17,1,17,2],[9,9,9,11],[10,1,10,2],[10,3,10,4],[10,5,10,7],[13,13,13,15],[14,1,14,2],[14,3,14,4],[14,5,14,6],[14,9,14,10],[12,1,12,2],[11,1,11,2],[11,3,11,4],[11,5,11,7],[5,1,5,2],[5,3,5,4],[5,6,5,7],[9,1,9,2],[9,3,9,4],[9,5,9,7],[5,9,5,12],[6,9,6,11],[7,1,7,4],[7,9,7,11],[8,1,8,2],[8,3,8,4],[8,5,8,7],[8,9,8,11],[1,2,1,13],[3,1,3,2],[3,3,3,5],[4,1,4,2],[4,3,4,4],[4,6,4,7],[4,9,4,11]]}
[]
[null,"Plant:",{"$f":"'Data Sheet 1'!C2:N2","v":0}]
[]
[null,"Sampling Location:",null,{"$f":"'Data Sheet 1'!D4:F4","v":0},null,null,null,"Method:",{"$f":"'Data Sheet 1'!I4","v":" "},"Checks",null,null,"Pre","Mid","Post"]
[null,"Run No.:",null,null,null,"Testing Operator:",null,null,null,"Vacuum (in Hg):"]
[null,"Run Date:",null,null,null,"Job Number:",null,null,null,"Leak Check Total Volume (ft3):"]
[null,null,null,null,null,null,null,null,null,"Leak Rate (cfm):"]
[null,"Equipment Identification",null,null,null,"Calibration",null,null,null,"Pitot (Yes/No):"]
[null,"Reagent Box:",null,null,null,"Meter Box Correction Factor, Y:",null,null,null,"Nozzle (Yes/No):"]
[null,"Unbilical Line:",null,null,null,"Meter Box pressure differential, ΔH@ (in H2O):",null,null,null,"Stack Thermocouple (Yes/No):"]
[null,"Stack Thermocouple ID: ",null,null,null,"Pitot tube coefficient, Cp:"]
[null,"Tedlar Bags:",null,null,null,"Nozzle diameter, Dn (in):"]
[null,"Orsat Pump:",null,null,null,null,null,null,null,"Moisture in:","ml H2O","Initial","Final","Micro-manometer Used?"]
[null,"Probe Length/Type:",null,null,null,"Ambient Conditions",null,null,null,"Impinger 1:",null,null,null,"Sensitivity (in. H2O)"]
[null,"Nozzle ID:",null,null,null,"Pbar (in. Hg):",null,null,null,"Impinger 2:"]
[null,null,null,null,null,"Temperature:",null,null,null,"Impinger 3:"]
[null,"Filters",null,null,null,"Pg (in. H2O):",null,null,null,"Impinger 4:"]
[null,"Filter No. 1:",null,null,null,"Concentrations",null,null,null,"Impinger 5:"]
[null,"Filter No. 2:",null,null,null,"O2 Concentration:",null,null,null,"Impinger 6:"]
[null,"Filter No. 3:",null,null,null,"CO2 Concentration:",null,null,null,"Silica Gel.:",null,null,null,"Impinger Water Weight, Vlc:",null,null,{"$f":"(M14-L14)+(M15-L15)+(M16-L16)+(M17-L17)+(M18-L18)+(M19-L19)+(M20-L20)","v":0}]
[]
[null,"Traverse Point No.","Sampling Time (min)",null,"Clock Time 24 hr","Dry Gas Meter Reading (Vm,ft3)","Velocity Head\n(ΔP in H2O)","Orfice Pressure Differential (ΔH, in H20)",null,"Stack Temperature °F","Probe Temperature °F","Filter Temperature °F",null,"Final exit Temperature °F","Dry Gas Meter Temperature °F",null,"Pump Vacuum (in. Hg)","Sample Rate"]
[null,null,"Begin","End",null,null,null,"Desired","Actual",null,null,"Inlet","Outlet",null," Inlet"," Outlet"]

{"sheet":"Data Sheet 3","index":3,"n_rows":26,"n_cols":18,"rows_kept":26,"cut":false,"hidden":false,"merged":[[124,3,124,7],[21,17,22,17],[19,13,19,15],[21,1,22,1],[21,2,21,3],[21,4,22,4],[21,5,22,5],[21,6,22,6],[21,7,21,8],[21,9,22,9],[21,10,22,10],[21,11,21,12],[21,13,22,13],[21,14,21,15],[21,16,22,16],[15,5,15,6],[15,9,15,10],[16,5,16,6],[16,9,16,10],[17,3,17,4],[17,9,17,10],[18,1,18,2],[18,3,18,4],[18,5,18,6],[18,9,18,10],[12,3,12,4],[12,13,12,15],[19,1,19,2],[19,3,19,4],[19,5,19,6],[19,9,19,10],[13,1,13,2],[13,3,13,4],[13,9,13,10],[17,1,17,2],[9,9,9,11],[10,1,10,2],[10,3,10,4],[10,5,10,7],[13,13,13,15],[14,1,14,2],[14,3,14,4],[14,5,14,6],[14,9,14,10],[12,1,12,2],[11,1,11,2],[11,3,11,4],[11,5,11,7],[5,1,5,2],[5,3,5,4],[5,6,5,7],[9,1,9,2],[9,3,9,4],[9,5,9,7],[5,9,5,12],[6,9,6,11],[7,1,7,4],[7,9,7,11],[8,1,8,2],[8,3,8,4],[8,5,8,7],[8,9,8,11],[1,2,1,13],[3,1,3,2],[3,3,3,5],[4,1,4,2],[4,3,4,4],[4,6,4,7],[4,9,4,11]]}
[]
[null,"Plant:",{"$f":"'Data Sheet 1'!C2:N2","v":0}]
[]
[null,"Sampling Location:",null,{"$f":"'Data Sheet 1'!D4:F4","v":0},null,null,null,"Method:",{"$f":"'Data Sheet 1'!I4","v":" "},"Checks",null,null,"Pre","Mid","Post"]
[null,"Run No.:",null,null,null,"Testing Operator:",null,null,null,"Vacuum (in Hg):"]
[null,"Run Date:",null,null,null,"Job Number:",null,null,null,"Leak Check Total Volume (ft3):"]
[null,null,null,null,null,null,null,null,null,"Leak Rate (cfm):"]
[null,"Equipment Identification",null,null,null,"Calibration",null,null,null,"Pitot (Yes/No):"]
[null,"Reagent Box:",null,null,null,"Meter Box Correction Factor, Y:",null,null,null,"Nozzle (Yes/No):"]
[null,"Unbilical Line:",null,null,null,"Meter Box pressure differential, ΔH@ (in H2O):",null,null,null,"Stack Thermocouple (Yes/No):"]
[null,"Stack Thermocouple ID: ",null,null,null,"Pitot tube coefficient, Cp:"]
[null,"Tedlar Bags:",null,null,null,"Nozzle diameter, Dn (in):"]
[null,"Orsat Pump:",null,null,null,null,null,null,null,"Moisture in:","ml H2O","Initial","Final","Micro-manometer Used?"]
[null,"Probe Length/Type:",null,null,null,"Ambient Conditions",null,null,null,"Impinger 1:",null,null,null,"Sensitivity (in. H2O)"]
[null,"Nozzle ID:",null,null,null,"Pbar (in. Hg):",null,null,null,"Impinger 2:"]
[null,null,null,null,null,"Temperature:",null,null,null,"Impinger 3:"]
[null,"Filters",null,null,null,"Pg (in. H2O):",null,null,null,"Impinger 4:"]
[null,"Filter No. 1:",null,null,null,"Concentrations",null,null,null,"Impinger 5:"]
[null,"Filter No. 2:",null,null,null,"O2 Concentration:",null,null,null,"Impinger 6:"]
[null,"Filter No. 3:",null,null,null,"CO2 Concentration:",null,null,null,"Silica Gel.:",null,null,null,"Impinger Water Weight, Vlc:",null,null,{"$f":"(M14-L14)+(M15-L15)+(M16-L16)+(M17-L17)+(M18-L18)+(M19-L19)+(M20-L20)","v":0}]
[]
[null,"Traverse Point No.","Sampling Time (min)",null,"Clock Time 24 hr","Dry Gas Meter Reading (Vm,ft3)","Velocity Head\n(ΔP in H2O)","Orfice Pressure Differential (ΔH, in H20)",null,"Stack Temperature °F","Probe Temperature °F","Filter Temperature °F",null,"Final exit Temperature °F","Dry Gas Meter Temperature °F",null,"Pump Vacuum (in. Hg)","Sample Rate"]
[null,null,"Begin","End",null,null,null,"Desired","Actual",null,null,"Inlet","Outlet",null," Inlet"," Outlet"]
[]
[]
[null,null,null," "]

{"sheet":"Data Sheet 4","index":4,"n_rows":23,"n_cols":18,"rows_kept":23,"cut":false,"hidden":false,"merged":[[1,2,1,13],[3,1,3,2],[3,3,3,5],[4,1,4,2],[4,3,4,4],[4,6,4,7],[4,9,4,11],[5,1,5,2],[5,3,5,4],[5,6,5,7],[5,9,5,12],[6,9,6,11],[7,1,7,4],[7,9,7,11],[8,1,8,2],[8,3,8,4],[8,5,8,7],[8,9,8,11],[9,1,9,2],[9,3,9,4],[9,5,9,7],[9,9,9,11],[10,1,10,2],[10,3,10,4],[10,5,10,7],[11,1,11,2],[11,3,11,4],[11,5,11,7],[12,1,12,2],[12,3,12,4],[12,13,12,15],[13,1,13,2],[13,3,13,4],[13,9,13,10],[13,13,13,15],[14,1,14,2],[14,3,14,4],[14,5,14,6],[14,9,14,10],[15,5,15,6],[15,9,15,10],[16,5,16,6],[16,9,16,10],[17,1,17,2],[17,3,17,4],[17,9,17,10],[18,1,18,2],[18,3,18,4],[18,5,18,6],[18,9,18,10],[19,1,19,2],[19,3,19,4],[19,5,19,6],[19,9,19,10],[19,13,19,15],[21,1,22,1],[21,2,21,3],[21,4,22,4],[21,5,22,5],[21,6,22,6],[21,16,22,16],[21,17,22,17],[124,3,124,7],[21,7,21,8],[21,9,22,9],[21,10,22,10],[21,11,21,12],[21,13,22,13],[21,14,21,15]]}
[]
[null,"Plant:"]
[]
[null,"Sampling Location:",null,{"$f":"'Data Sheet 1'!D4:F4","v":0},null,null,null,"Method:",{"$f":"'Data Sheet 1'!I4","v":" "},"Checks",null,null,"Pre","Mid","Post"]
[null,"Run No.:",null,null,null,"Testing Operator:",null,null,null,"Vacuum (in Hg):"]
[null,"Run Date:",null,null,null,"Job Number:",null,null,null,"Leak Check Total Volume (ft3):"]
[null,null,null,null,null,null,null,null,null,"Leak Rate (cfm):"]
[null,"Equipment Identification",null,null,null,"Calibration",null,null,null,"Pitot (Yes/No):"]
[null,"Reagent Box:",null,null,null,"Meter Box Correction Factor, Y:",null,null,null,"Nozzle (Yes/No):"]
[null,"Unbilical Line:",null,null,null,"Meter Box pressure differential, ΔH@ (in H2O):",null,null,null,"Stack Thermocouple (Yes/No):"]
[null,"Stack Thermocouple ID: ",null,null,null,"Pitot tube coefficient, Cp:"]
[null,"Tedlar Bags:",null,null,null,"Nozzle diameter, Dn (in):"]
[null,"Orsat Pump:",null,null,null,null,null,null,null,"Moisture in:","ml H2O","Initial","Final","Micro-manometer Used?"]
[null,"Probe Length/Type:",null,null,null,"Ambient Conditions",null,null,null,"Impinger 1:",null,null,null,"Sensitivity (in. H2O)"]
[null,"Nozzle ID:",null,null,null,"Pbar (in. Hg):",null,null,null,"Impinger 2:"]
[null,null,null,null,null,"Temperature:",null,null,null,"Impinger 3:"]
[null,"Filters",null,null,null,"Pg (in. H2O):",null,null,null,"Impinger 4:"]
[null,"Filter No. 1:",null,null,null,"Concentrations",null,null,null,"Impinger 5:"]
[null,"Filter No. 2:",null,null,null,"O2 Concentration:",null,null,null,"Impinger 6:"]
[null,"Filter No. 3:",null,null,null,"CO2 Concentration:",null,null,null,"Silica Gel.:",null,null,null,"Impinger Water Weight, Vlc:",null,null,{"$f":"(M14-L14)+(M15-L15)+(M16-L16)+(M17-L17)+(M18-L18)+(M19-L19)+(M20-L20)","v":0}]
[]
[null,"Traverse Point No.","Sampling Time (min)",null,"Clock Time 24 hr","Dry Gas Meter Reading (Vm,ft3)","Velocity Head\n(ΔP in H2O)","Orfice Pressure Differential (ΔH, in H20)",null,"Stack Temperature °F","Probe Temperature °F","Filter Temperature °F",null,"Final exit Temperature °F","Dry Gas Meter Temperature °F",null,"Pump Vacuum (in. Hg)","Sample Rate"]
[null,null,"Begin","End",null,null,null,"Desired","Actual",null,null,"Inlet","Outlet",null," Inlet"," Outlet"]

{"sheet":"Data Sheet 5","index":5,"n_rows":23,"n_cols":18,"rows_kept":23,"cut":false,"hidden":false,"merged":[[1,2,1,13],[3,1,3,2],[3,3,3,5],[4,1,4,2],[4,3,4,4],[4,6,4,7],[4,9,4,11],[5,1,5,2],[5,3,5,4],[5,6,5,7],[5,9,5,12],[6,9,6,11],[7,1,7,4],[7,9,7,11],[8,1,8,2],[8,3,8,4],[8,5,8,7],[8,9,8,11],[9,1,9,2],[9,3,9,4],[9,5,9,7],[9,9,9,11],[10,1,10,2],[10,3,10,4],[10,5,10,7],[11,1,11,2],[11,3,11,4],[11,5,11,7],[12,1,12,2],[12,3,12,4],[12,13,12,15],[13,1,13,2],[13,3,13,4],[13,9,13,10],[13,13,13,15],[14,1,14,2],[14,3,14,4],[14,5,14,6],[14,9,14,10],[15,5,15,6],[15,9,15,10],[16,5,16,6],[16,9,16,10],[17,1,17,2],[17,3,17,4],[17,9,17,10],[18,1,18,2],[18,3,18,4],[18,5,18,6],[18,9,18,10],[19,1,19,2],[19,3,19,4],[19,5,19,6],[19,9,19,10],[19,13,19,15],[21,1,22,1],[21,2,21,3],[21,4,22,4],[21,5,22,5],[21,6,22,6],[21,16,22,16],[21,17,22,17],[85,3,85,7],[21,7,21,8],[21,9,22,9],[21,10,22,10],[21,11,21,12],[21,13,22,13],[21,14,21,15]]}
[]
[null,"Plant:"]
[]
[null,"Sampling Location:",null,{"$f":"'Data Sheet 1'!D4:F4","v":0},null,null,null,"Method:",{"$f":"'Data Sheet 1'!I4","v":" "},"Checks",null,null,"Pre","Mid","Post"]
[null,"Run No.:",null,null,null,"Testing Operator:",null,null,null,"Vacuum (in Hg):"]
[null,"Run Date:",null,null,null,"Job Number:",null,null,null,"Leak Check Total Volume (ft3):"]
[null,null,null,null,null,null,null,null,null,"Leak Rate (cfm):"]
[null,"Equipment Identification",null,null,null,"Calibration",null,null,null,"Pitot (Yes/No):"]
[null,"Reagent Box:",null,null,null,"Meter Box Correction Factor, Y:",null,null,null,"Nozzle (Yes/No):"]
[null,"Unbilical Line:",null,null,null,"Meter Box pressure differential, ΔH@ (in H2O):",null,null,null,"Stack Thermocouple (Yes/No):"]
[null,"Stack Thermocouple ID: ",null,null,null,"Pitot tube coefficient, Cp:"]
[null,"Tedlar Bags:",null,null,null,"Nozzle diameter, Dn (in):"]
[null,"Orsat Pump:",null,null,null,null,null,null,null,"Moisture in:","ml H2O","Initial","Final","Micro-manometer Used?"]
[null,"Probe Length/Type:",null,null,null,"Ambient Conditions",null,null,null,"Impinger 1:",null,null,null,"Sensitivity (in. H2O)"]
[null,"Nozzle ID:",null,null,null,"Pbar (in. Hg):",null,null,null,"Impinger 2:"]
[null,null,null,null,null,"Temperature:",null,null,null,"Impinger 3:"]
[null,"Filters",null,null,null,"Pg (in. H2O):",null,null,null,"Impinger 4:"]
[null,"Filter No. 1:",null,null,null,"Concentrations",null,null,null,"Impinger 5:"]
[null,"Filter No. 2:",null,null,null,"O2 Concentration:",null,null,null,"Impinger 6:"]
[null,"Filter No. 3:",null,null,null,"CO2 Concentration:",null,null,null,"Silica Gel.:",null,null,null,"Impinger Water Weight, Vlc:",null,null,{"$f":"(M14-L14)+(M15-L15)+(M16-L16)+(M17-L17)+(M18-L18)+(M19-L19)+(M20-L20)","v":0}]
[]
[null,"Traverse Point No.","Sampling Time (min)",null,"Clock Time 24 hr","Dry Gas Meter Reading (Vm,ft3)","Velocity Head\n(ΔP in H2O)","Orfice Pressure Differential (ΔH, in H20)",null,"Stack Temperature °F","Probe Temperature °F","Filter Temperature °F",null,"Final exit Temperature °F","Dry Gas Meter Temperature °F",null,"Pump Vacuum (in. Hg)","Sample Rate"]
[null,null,"Begin","End",null,null,null,"Desired","Actual",null,null,"Inlet","Outlet",null," Inlet"," Outlet"]

{"sheet":"Data Sheet 6","index":6,"n_rows":23,"n_cols":18,"rows_kept":23,"cut":false,"hidden":false,"merged":[[1,2,1,13],[3,1,3,2],[3,3,3,5],[4,1,4,2],[4,3,4,4],[4,6,4,7],[4,9,4,11],[5,1,5,2],[5,3,5,4],[5,6,5,7],[5,9,5,12],[6,9,6,11],[7,1,7,4],[7,9,7,11],[8,1,8,2],[8,3,8,4],[8,5,8,7],[8,9,8,11],[9,1,9,2],[9,3,9,4],[9,5,9,7],[9,9,9,11],[10,1,10,2],[10,3,10,4],[10,5,10,7],[11,1,11,2],[11,3,11,4],[11,5,11,7],[12,1,12,2],[12,3,12,4],[12,13,12,15],[13,1,13,2],[13,3,13,4],[13,9,13,10],[13,13,13,15],[14,1,14,2],[14,3,14,4],[14,5,14,6],[14,9,14,10],[15,5,15,6],[15,9,15,10],[16,5,16,6],[16,9,16,10],[17,1,17,2],[17,3,17,4],[17,9,17,10],[18,1,18,2],[18,3,18,4],[18,5,18,6],[18,9,18,10],[19,1,19,2],[19,3,19,4],[19,5,19,6],[19,9,19,10],[19,13,19,15],[21,1,22,1],[21,2,21,3],[21,4,22,4],[21,5,22,5],[21,6,22,6],[21,16,22,16],[21,17,22,17],[85,3,85,7],[21,7,21,8],[21,9,22,9],[21,10,22,10],[21,11,21,12],[21,13,22,13],[21,14,21,15]]}
[]
[null,"Plant:"]
[]
[null,"Sampling Location:",null,{"$f":"'Data Sheet 1'!D4:F4","v":0},null,null,null,"Method:",{"$f":"'Data Sheet 1'!I4","v":" "},"Checks",null,null,"Pre","Mid","Post"]
[null,"Run No.:",null,null,null,"Testing Operator:",null,null,null,"Vacuum (in Hg):"]
[null,"Run Date:",null,null,null,"Job Number:",null,null,null,"Leak Check Total Volume (ft3):"]
[null,null,null,null,null,null,null,null,null,"Leak Rate (cfm):"]
[null,"Equipment Identification",null,null,null,"Calibration",null,null,null,"Pitot (Yes/No):"]
[null,"Reagent Box:",null,null,null,"Meter Box Correction Factor, Y:",null,null,null,"Nozzle (Yes/No):"]
[null,"Unbilical Line:",null,null,null,"Meter Box pressure differential, ΔH@ (in H2O):",null,null,null,"Stack Thermocouple (Yes/No):"]
[null,"Stack Thermocouple ID: ",null,null,null,"Pitot tube coefficient, Cp:"]
[null,"Tedlar Bags:",null,null,null,"Nozzle diameter, Dn (in):"]
[null,"Orsat Pump:",null,null,null,null,null,null,null,"Moisture in:","ml H2O","Initial","Final","Micro-manometer Used?"]
[null,"Probe Length/Type:",null,null,null,"Ambient Conditions",null,null,null,"Impinger 1:",null,null,null,"Sensitivity (in. H2O)"]
[null,"Nozzle ID:",null,null,null,"Pbar (in. Hg):",null,null,null,"Impinger 2:"]
[null,null,null,null,null,"Temperature:",null,null,null,"Impinger 3:"]
[null,"Filters",null,null,null,"Pg (in. H2O):",null,null,null,"Impinger 4:"]
[null,"Filter No. 1:",null,null,null,"Concentrations",null,null,null,"Impinger 5:"]
[null,"Filter No. 2:",null,null,null,"O2 Concentration:",null,null,null,"Impinger 6:"]
[null,"Filter No. 3:",null,null,null,"CO2 Concentration:",null,null,null,"Silica Gel.:",null,null,null,"Impinger Water Weight, Vlc:",null,null,{"$f":"(M14-L14)+(M15-L15)+(M16-L16)+(M17-L17)+(M18-L18)+(M19-L19)+(M20-L20)","v":0}]
[]
[null,"Traverse Point No.","Sampling Time (min)",null,"Clock Time 24 hr","Dry Gas Meter Reading (Vm,ft3)","Velocity Head\n(ΔP in H2O)","Orfice Pressure Differential (ΔH, in H20)",null,"Stack Temperature °F","Probe Temperature °F","Filter Temperature °F",null,"Final exit Temperature °F","Dry Gas Meter Temperature °F",null,"Pump Vacuum (in. Hg)","Sample Rate"]
[null,null,"Begin","End",null,null,null,"Desired","Actual",null,null,"Inlet","Outlet",null," Inlet"," Outlet"]

{"sheet":"Data Sheet 7","index":7,"n_rows":23,"n_cols":18,"rows_kept":23,"cut":false,"hidden":false,"merged":[[1,2,1,13],[3,1,3,2],[3,3,3,5],[4,1,4,2],[4,3,4,4],[4,6,4,7],[4,9,4,11],[5,1,5,2],[5,3,5,4],[5,6,5,7],[5,9,5,12],[6,9,6,11],[7,1,7,4],[7,9,7,11],[8,1,8,2],[8,3,8,4],[8,5,8,7],[8,9,8,11],[9,1,9,2],[9,3,9,4],[9,5,9,7],[9,9,9,11],[10,1,10,2],[10,3,10,4],[10,5,10,7],[11,1,11,2],[11,3,11,4],[11,5,11,7],[12,1,12,2],[12,3,12,4],[12,13,12,15],[13,1,13,2],[13,3,13,4],[13,9,13,10],[13,13,13,15],[14,1,14,2],[14,3,14,4],[14,5,14,6],[14,9,14,10],[15,5,15,6],[15,9,15,10],[16,5,16,6],[16,9,16,10],[17,1,17,2],[17,3,17,4],[17,9,17,10],[18,1,18,2],[18,3,18,4],[18,5,18,6],[18,9,18,10],[19,1,19,2],[19,3,19,4],[19,5,19,6],[19,9,19,10],[19,13,19,15],[21,1,22,1],[21,2,21,3],[21,4,22,4],[21,5,22,5],[21,6,22,6],[21,16,22,16],[21,17,22,17],[85,3,85,7],[21,7,21,8],[21,9,22,9],[21,10,22,10],[21,11,21,12],[21,13,22,13],[21,14,21,15]]}
[]
[null,"Plant:"]
[]
[null,"Sampling Location:",null,{"$f":"'Data Sheet 1'!D4:F4","v":0},null,null,null,"Method:",{"$f":"'Data Sheet 1'!I4","v":" "},"Checks",null,null,"Pre","Mid","Post"]
[null,"Run No.:",null,null,null,"Testing Operator:",null,null,null,"Vacuum (in Hg):"]
[null,"Run Date:",null,null,null,"Job Number:",null,null,null,"Leak Check Total Volume (ft3):"]
[null,null,null,null,null,null,null,null,null,"Leak Rate (cfm):"]
[null,"Equipment Identification",null,null,null,"Calibration",null,null,null,"Pitot (Yes/No):"]
[null,"Reagent Box:",null,null,null,"Meter Box Correction Factor, Y:",null,null,null,"Nozzle (Yes/No):"]
[null,"Unbilical Line:",null,null,null,"Meter Box pressure differential, ΔH@ (in H2O):",null,null,null,"Stack Thermocouple (Yes/No):"]
[null,"Stack Thermocouple ID: ",null,null,null,"Pitot tube coefficient, Cp:"]
[null,"Tedlar Bags:",null,null,null,"Nozzle diameter, Dn (in):"]
[null,"Orsat Pump:",null,null,null,null,null,null,null,"Moisture in:","ml H2O","Initial","Final","Micro-manometer Used?"]
[null,"Probe Length/Type:",null,null,null,"Ambient Conditions",null,null,null,"Impinger 1:",null,null,null,"Sensitivity (in. H2O)"]
[null,"Nozzle ID:",null,null,null,"Pbar (in. Hg):",null,null,null,"Impinger 2:"]
[null,null,null,null,null,"Temperature:",null,null,null,"Impinger 3:"]
[null,"Filters",null,null,null,"Pg (in. H2O):",null,null,null,"Impinger 4:"]
[null,"Filter No. 1:",null,null,null,"Concentrations",null,null,null,"Impinger 5:"]
[null,"Filter No. 2:",null,null,null,"O2 Concentration:",null,null,null,"Impinger 6:"]
[null,"Filter No. 3:",null,null,null,"CO2 Concentration:",null,null,null,"Silica Gel.:",null,null,null,"Impinger Water Weight, Vlc:",null,null,{"$f":"(M14-L14)+(M15-L15)+(M16-L16)+(M17-L17)+(M18-L18)+(M19-L19)+(M20-L20)","v":0}]
[]
[null,"Traverse Point No.","Sampling Time (min)",null,"Clock Time 24 hr","Dry Gas Meter Reading (Vm,ft3)","Velocity Head\n(ΔP in H2O)","Orfice Pressure Differential (ΔH, in H20)",null,"Stack Temperature °F","Probe Temperature °F","Filter Temperature °F",null,"Final exit Temperature °F","Dry Gas Meter Temperature °F",null,"Pump Vacuum (in. Hg)","Sample Rate"]
[null,null,"Begin","End",null,null,null,"Desired","Actual",null,null,"Inlet","Outlet",null," Inlet"," Outlet"]

{"sheet":"Data Sheet 8","index":8,"n_rows":23,"n_cols":18,"rows_kept":23,"cut":false,"hidden":false,"merged":[[1,2,1,13],[3,1,3,2],[3,3,3,5],[4,1,4,2],[4,3,4,4],[4,6,4,7],[4,9,4,11],[5,1,5,2],[5,3,5,4],[5,6,5,7],[5,9,5,12],[6,9,6,11],[7,1,7,4],[7,9,7,11],[8,1,8,2],[8,3,8,4],[8,5,8,7],[8,9,8,11],[9,1,9,2],[9,3,9,4],[9,5,9,7],[9,9,9,11],[10,1,10,2],[10,3,10,4],[10,5,10,7],[11,1,11,2],[11,3,11,4],[11,5,11,7],[12,1,12,2],[12,3,12,4],[12,13,12,15],[13,1,13,2],[13,3,13,4],[13,9,13,10],[13,13,13,15],[14,1,14,2],[14,3,14,4],[14,5,14,6],[14,9,14,10],[15,5,15,6],[15,9,15,10],[16,5,16,6],[16,9,16,10],[17,1,17,2],[17,3,17,4],[17,9,17,10],[18,1,18,2],[18,3,18,4],[18,5,18,6],[18,9,18,10],[19,1,19,2],[19,3,19,4],[19,5,19,6],[19,9,19,10],[19,13,19,15],[21,1,22,1],[21,2,21,3],[21,4,22,4],[21,5,22,5],[21,6,22,6],[21,16,22,16],[21,17,22,17],[85,3,85,7],[21,7,21,8],[21,9,22,9],[21,10,22,10],[21,11,21,12],[21,13,22,13],[21,14,21,15]]}
[]
[null,"Plant:"]
[]
[null,"Sampling Location:",null,{"$f":"'Data Sheet 1'!D4:F4","v":0},null,null,null,"Method:",{"$f":"'Data Sheet 1'!I4","v":" "},"Checks",null,null,"Pre","Mid","Post"]
[null,"Run No.:",null,null,null,"Testing Operator:",null,null,null,"Vacuum (in Hg):"]
[null,"Run Date:",null,null,null,"Job Number:",null,null,null,"Leak Check Total Volume (ft3):"]
[null,null,null,null,null,null,null,null,null,"Leak Rate (cfm):"]
[null,"Equipment Identification",null,null,null,"Calibration",null,null,null,"Pitot (Yes/No):"]
[null,"Reagent Box:",null,null,null,"Meter Box Correction Factor, Y:",null,null,null,"Nozzle (Yes/No):"]
[null,"Unbilical Line:",null,null,null,"Meter Box pressure differential, ΔH@ (in H2O):",null,null,null,"Stack Thermocouple (Yes/No):"]
[null,"Stack Thermocouple ID: ",null,null,null,"Pitot tube coefficient, Cp:"]
[null,"Tedlar Bags:",null,null,null,"Nozzle diameter, Dn (in):"]
[null,"Orsat Pump:",null,null,null,null,null,null,null,"Moisture in:","ml H2O","Initial","Final","Micro-manometer Used?"]
[null,"Probe Length/Type:",null,null,null,"Ambient Conditions",null,null,null,"Impinger 1:",null,null,null,"Sensitivity (in. H2O)"]
[null,"Nozzle ID:",null,null,null,"Pbar (in. Hg):",null,null,null,"Impinger 2:"]
[null,null,null,null,null,"Temperature:",null,null,null,"Impinger 3:"]
[null,"Filters",null,null,null,"Pg (in. H2O):",null,null,null,"Impinger 4:"]
[null,"Filter No. 1:",null,null,null,"Concentrations",null,null,null,"Impinger 5:"]
[null,"Filter No. 2:",null,null,null,"O2 Concentration:",null,null,null,"Impinger 6:"]
[null,"Filter No. 3:",null,null,null,"CO2 Concentration:",null,null,null,"Silica Gel.:",null,null,null,"Impinger Water Weight, Vlc:",null,null,{"$f":"(M14-L14)+(M15-L15)+(M16-L16)+(M17-L17)+(M18-L18)+(M19-L19)+(M20-L20)","v":0}]
[]
[null,"Traverse Point No.","Sampling Time (min)",null,"Clock Time 24 hr","Dry Gas Meter Reading (Vm,ft3)","Velocity Head\n(ΔP in H2O)","Orfice Pressure Differential (ΔH, in H20)",null,"Stack Temperature °F","Probe Temperature °F","Filter Temperature °F",null,"Final exit Temperature °F","Dry Gas Meter Temperature °F",null,"Pump Vacuum (in. Hg)","Sample Rate"]
[null,null,"Begin","End",null,null,null,"Desired","Actual",null,null,"Inlet","Outlet",null," Inlet"," Outlet"]

{"sheet":"Data Sheet 9","index":9,"n_rows":23,"n_cols":18,"rows_kept":23,"cut":false,"hidden":false,"merged":[[1,2,1,13],[3,1,3,2],[3,3,3,5],[4,1,4,2],[4,3,4,4],[4,6,4,7],[4,9,4,11],[5,1,5,2],[5,3,5,4],[5,6,5,7],[5,9,5,12],[6,9,6,11],[7,1,7,4],[7,9,7,11],[8,1,8,2],[8,3,8,4],[8,5,8,7],[8,9,8,11],[9,1,9,2],[9,3,9,4],[9,5,9,7],[9,9,9,11],[10,1,10,2],[10,3,10,4],[10,5,10,7],[11,1,11,2],[11,3,11,4],[11,5,11,7],[12,1,12,2],[12,3,12,4],[12,13,12,15],[13,1,13,2],[13,3,13,4],[13,9,13,10],[13,13,13,15],[14,1,14,2],[14,3,14,4],[14,5,14,6],[14,9,14,10],[15,5,15,6],[15,9,15,10],[16,5,16,6],[16,9,16,10],[17,1,17,2],[17,3,17,4],[17,9,17,10],[18,1,18,2],[18,3,18,4],[18,5,18,6],[18,9,18,10],[19,1,19,2],[19,3,19,4],[19,5,19,6],[19,9,19,10],[19,13,19,15],[21,1,22,1],[21,2,21,3],[21,4,22,4],[21,5,22,5],[21,6,22,6],[21,16,22,16],[21,17,22,17],[85,3,85,7],[21,7,21,8],[21,9,22,9],[21,10,22,10],[21,11,21,12],[21,13,22,13],[21,14,21,15]]}
[]
[null,"Plant:"]
[]
[null,"Sampling Location:",null,{"$f":"'Data Sheet 1'!D4:F4","v":0},null,null,null,"Method:",{"$f":"'Data Sheet 1'!I4","v":" "},"Checks",null,null,"Pre","Mid","Post"]
[null,"Run No.:",null,null,null,"Testing Operator:",null,null,null,"Vacuum (in Hg):"]
[null,"Run Date:",null,null,null,"Job Number:",null,null,null,"Leak Check Total Volume (ft3):"]
[null,null,null,null,null,null,null,null,null,"Leak Rate (cfm):"]
[null,"Equipment Identification",null,null,null,"Calibration",null,null,null,"Pitot (Yes/No):"]
[null,"Reagent Box:",null,null,null,"Meter Box Correction Factor, Y:",null,null,null,"Nozzle (Yes/No):"]
[null,"Unbilical Line:",null,null,null,"Meter Box pressure differential, ΔH@ (in H2O):",null,null,null,"Stack Thermocouple (Yes/No):"]
[null,"Stack Thermocouple ID: ",null,null,null,"Pitot tube coefficient, Cp:"]
[null,"Tedlar Bags:",null,null,null,"Nozzle diameter, Dn (in):"]
[null,"Orsat Pump:",null,null,null,null,null,null,null,"Moisture in:","ml H2O","Initial","Final","Micro-manometer Used?"]
[null,"Probe Length/Type:",null,null,null,"Ambient Conditions",null,null,null,"Impinger 1:",null,null,null,"Sensitivity (in. H2O)"]
[null,"Nozzle ID:",null,null,null,"Pbar (in. Hg):",null,null,null,"Impinger 2:"]
[null,null,null,null,null,"Temperature:",null,null,null,"Impinger 3:"]
[null,"Filters",null,null,null,"Pg (in. H2O):",null,null,null,"Impinger 4:"]
[null,"Filter No. 1:",null,null,null,"Concentrations",null,null,null,"Impinger 5:"]
[null,"Filter No. 2:",null,null,null,"O2 Concentration:",null,null,null,"Impinger 6:"]
[null,"Filter No. 3:",null,null,null,"CO2 Concentration:",null,null,null,"Silica Gel.:",null,null,null,"Impinger Water Weight, Vlc:",null,null,{"$f":"(M14-L14)+(M15-L15)+(M16-L16)+(M17-L17)+(M18-L18)+(M19-L19)+(M20-L20)","v":0}]
[]
[null,"Traverse Point No.","Sampling Time (min)",null,"Clock Time 24 hr","Dry Gas Meter Reading (Vm,ft3)","Velocity Head\n(ΔP in H2O)","Orfice Pressure Differential (ΔH, in H20)",null,"Stack Temperature °F","Probe Temperature °F","Filter Temperature °F",null,"Final exit Temperature °F","Dry Gas Meter Temperature °F",null,"Pump Vacuum (in. Hg)","Sample Rate"]
[null,null,"Begin","End",null,null,null,"Desired","Actual",null,null,"Inlet","Outlet",null," Inlet"," Outlet"]

{"sheet":"HeaderExport","index":10,"n_rows":10,"n_cols":59,"rows_kept":10,"cut":false,"hidden":false,"merged":[]}
["RunNumber","RunDate","JobNumber","Method","PbHDR","PgHDR","FilterNum1","FilterNum2","FilterNum3","ReagBox","Umbical","StackTC","TedlarBag","OrasatPump","SampBox","MeterBox","TCReadOut","Pitot","Nozzle","VlcHDR","YHDR","DH@HDR","CpHDR","DnHDR","PercCO2HDR","PercO2HDR","VacCkPre","VacCkPost","InitDGM","FinalDGM","LeakRtPre","LeakRtPost","PitotCkPre","PitotCkMid","PitotCkPost","NozzleCkPre","NozzleCkMid","NozzleCkPost","StackTCCKPre","StackTCCKMid","StackTCCKPost","Personnel","Location","Impinit1","Impinit2","Impinit3","Impinit4","Impinit5","Impinit6","Silicainit","Impfin1","Impfin2","Impfin3","Impfin4","Impfin5","Impfin6","Silicafin","Manused","Mansense"]
[{"$f":"IF(ISERROR('Data Sheet 1'!D$5),0,'Data Sheet 1'!D$5)","v":0},{"$f":"IF(ISERROR('Data Sheet 1'!D$6),0,'Data Sheet 1'!D$6)","v":0},{"$f":"IF(ISERROR('Data Sheet 1'!G$6),0,'Data Sheet 1'!G$6)","v":0},null,{"$f":"IF(ISERROR('Data Sheet 1'!H$15),0,'Data Sheet 1'!H$15)","v":0},{"$f":"IF(ISERROR('Data Sheet 1'!H$17),0,'Data Sheet 1'!H$17)","v":0},{"$f":"IF(ISERROR('Data Sheet 1'!D$18),0,'Data Sheet 1'!D$18)","v":0},{"$f":"IF(ISERROR('Data Sheet 1'!D$19),0,'Data Sheet 1'!D$19)","v":0},{"$f":"IF(ISERROR('Data Sheet 1'!D$20),0,'Data Sheet 1'!D$20)","v":0},{"$f":"IF(ISERROR('Data Sheet 1'!D$9),0,'Data Sheet 1'!D$9)","v":0},{"$f":"IF(ISERROR('Data Sheet 1'!D$10),0,'Data Sheet 1'!D$10)","v":0},{"$f":"IF(ISERROR('Data Sheet 1'!D$11),0,'Data Sheet 1'!D$11)","v":0},{"$f":"IF(ISERROR('Data Sheet 1'!D$12),0,'Data Sheet 1'!D$12)","v":0},{"$f":"IF(ISERROR('Data Sheet 1'!D$13),0,'Data Sheet 1'!D$13)","v":0},null,null,null,{"$f":"IF(ISERROR('Data Sheet 1'!D$14),0,'Data Sheet 1'!D$14)","v":0},{"$f":"IF(ISERROR('Data Sheet 1'!D$15),0,'Data Sheet 1'!D$15)","v":0},{"$f":"IF(ISERROR('Data Sheet 1'!Q$20),0,'Data Sheet 1'!Q$20)","v":0},{"$f":"IF(ISERROR('Data Sheet 1'!I$9),0,'Data Sheet 1'!I$9)","v":0},{"$f":"IF(ISERROR('Data Sheet 1'!I$10),0,'Data Sheet 1'!I$10)","v":0},{"$f":"IF(ISERROR('Data Sheet 1'!I$11),0,'Data Sheet 1'!I$11)","v":0},{"$f":"IF(ISERROR('Data Sheet 1'!I$12),0,'Data Sheet 1'!I$12)","v":0},{"$f":"IF(ISERROR('Data Sheet 1'!H$20),0,'Data Sheet 1'!H$20)","v":0},{"$f":"IF(ISERROR('Data Sheet 1'!H$19),0,'Data Sheet 1'!H$19)","v":0},{"$f":"IF(ISERROR('Data Sheet 1'!M$5),0,'Data Sheet 1'!M$5)","v":0},{"$f":"IF(ISERROR('Data Sheet 1'!O$5),0,'Data Sheet 1'!O$5)","v":0},0,{"$f":"IF(ISERROR('Data Sheet 1'!N$6),0,'Data Sheet 1'!N$6)","v":0},{"$f":"IF(ISERROR('Data Sheet 1'!M$7),0,'Data Sheet 1'!M$7)","v":0},{"$f":"IF(ISERROR('Data Sheet 1'!O$7),0,'Data Sheet 1'!O$7)","v":0},{"$f":"IF(ISERROR('Data Sheet 1'!M$8),0,'Data Sheet 1'!M$8)","v":0},null,{"$f":"IF(ISERROR('Data Sheet 1'!O$8),0,'Data Sheet 1'!O$8)","v":0},{"$f":"IF(ISERROR('Data Sheet 1'!M$9),0,'Data Sheet 1'!M$9)","v":0},null,{"$f":"IF(ISERROR('Data Sheet 1'!O$9),0,'Data Sheet 1'!O$9)","v":0},{"$f":"IF(ISERROR('Data Sheet 1'!M$10),0,'Data Sheet 1'!M$10)","v":0},null,{"$f":"IF(ISERROR('Data Sheet 1'!O$10),0,'Data Sheet 1'!O$10)","v":0},null,null,{"$f":"IF(ISERROR('Data Sheet 1'!L$14),0,'Data Sheet 1'!L$14)","v":0},{"$f":"IF(ISERROR('Data Sheet 1'!L$15),0,'Data Sheet 1'!L$15)","v":0},{"$f":"IF(ISERROR('Data Sheet 1'!L$16),0,'Data Sheet 1'!L$16)","v":0},{"$f":"IF(ISERROR('Data Sheet 1'!L$17),0,'Data Sheet 1'!L$17)","v":0},{"$f":"IF(ISERROR('Data Sheet 1'!L$18),0,'Data Sheet 1'!L$18)","v":0},{"$f":"IF(ISERROR('Data Sheet 1'!L$19),0,'Data Sheet 1'!L$19)","v":0},{"$f":"IF(ISERROR('Data Sheet 1'!L$20),0,'Data Sheet 1'!L$20)","v":0},{"$f":"IF(ISERROR('Data Sheet 1'!M$14),0,'Data Sheet 1'!M$14)","v":0},{"$f":"IF(ISERROR('Data Sheet 1'!M$15),0,'Data Sheet 1'!M$15)","v":0},{"$f":"IF(ISERROR('Data Sheet 1'!M$16),0,'Data Sheet 1'!M$16)","v":0},{"$f":"IF(ISERROR('Data Sheet 1'!M$17),0,'Data Sheet 1'!M$17)","v":0},{"$f":"IF(ISERROR('Data Sheet 1'!M$18),0,'Data Sheet 1'!M$18)","v":0},{"$f":"IF(ISERROR('Data Sheet 1'!M$19),0,'Data Sheet 1'!M$19)","v":0},{"$f":"IF(ISERROR('Data Sheet 1'!M$20),0,'Data Sheet 1'!M$20)","v":0},{"$f":"IF(ISERROR('Data Sheet 1'!Q$13),0,'Data Sheet 1'!Q$13)","v":0},{"$f":"IF(ISERROR('Data Sheet 1'!Q$14),0,'Data Sheet 1'!Q$14)","v":0}]
[{"$f":"IF(ISERROR('Data Sheet 2'!D$5),0,'Data Sheet 2'!D$5)","v":0},{"$f":"IF(ISERROR('Data Sheet 2'!D$6),0,'Data Sheet 2'!D$6)","v":0},{"$f":"IF(ISERROR('Data Sheet 2'!G$6),0,'Data Sheet 2'!G$6)","v":0},null,{"$f":"IF(ISERROR('Data Sheet 2'!H$15),0,'Data Sheet 2'!H$15)","v":0},{"$f":"IF(ISERROR('Data Sheet 2'!H$17),0,'Data Sheet 2'!H$17)","v":0},{"$f":"IF(ISERROR('Data Sheet 2'!D$18),0,'Data Sheet 2'!D$18)","v":0},{"$f":"IF(ISERROR('Data Sheet 2'!D$19),0,'Data Sheet 2'!D$19)","v":0},{"$f":"IF(ISERROR('Data Sheet 2'!D$20),0,'Data Sheet 2'!D$20)","v":0},{"$f":"IF(ISERROR('Data Sheet 2'!D$9),0,'Data Sheet 2'!D$9)","v":0},{"$f":"IF(ISERROR('Data Sheet 2'!D$10),0,'Data Sheet 2'!D$10)","v":0},{"$f":"IF(ISERROR('Data Sheet 2'!D$11),0,'Data Sheet 2'!D$11)","v":0},{"$f":"IF(ISERROR('Data Sheet 2'!D$12),0,'Data Sheet 2'!D$12)","v":0},{"$f":"IF(ISERROR('Data Sheet 2'!D$13),0,'Data Sheet 2'!D$13)","v":0},null,null,null,{"$f":"IF(ISERROR('Data Sheet 2'!D$14),0,'Data Sheet 2'!D$14)","v":0},{"$f":"IF(ISERROR('Data Sheet 2'!D$15),0,'Data Sheet 2'!D$15)","v":0},{"$f":"IF(ISERROR('Data Sheet 2'!Q$20),0,'Data Sheet 2'!Q$20)","v":0},{"$f":"IF(ISERROR('Data Sheet 2'!I$9),0,'Data Sheet 2'!I$9)","v":0},{"$f":"IF(ISERROR('Data Sheet 2'!I$10),0,'Data Sheet 2'!I$10)","v":0},{"$f":"IF(ISERROR('Data Sheet 2'!I$11),0,'Data Sheet 2'!I$11)","v":0},{"$f":"IF(ISERROR('Data Sheet 2'!I$12),0,'Data Sheet 2'!I$12)","v":0},{"$f":"IF(ISERROR('Data Sheet 2'!H$20),0,'Data Sheet 2'!H$20)","v":0},{"$f":"IF(ISERROR('Data Sheet 2'!H$19),0,'Data Sheet 2'!H$19)","v":0},{"$f":"IF(ISERROR('Data Sheet 2'!M$5),0,'Data Sheet 2'!M$5)","v":0},{"$f":"IF(ISERROR('Data Sheet 2'!O$5),0,'Data Sheet 2'!O$5)","v":0},0,{"$f":"IF(ISERROR('Data Sheet 2'!N$6),0,'Data Sheet 2'!N$6)","v":0},{"$f":"IF(ISERROR('Data Sheet 2'!M$7),0,'Data Sheet 2'!M$7)","v":0},{"$f":"IF(ISERROR('Data Sheet 2'!O$7),0,'Data Sheet 2'!O$7)","v":0},{"$f":"IF(ISERROR('Data Sheet 2'!M$8),0,'Data Sheet 2'!M$8)","v":0},null,{"$f":"IF(ISERROR('Data Sheet 2'!O$8),0,'Data Sheet 2'!O$8)","v":0},{"$f":"IF(ISERROR('Data Sheet 2'!M$9),0,'Data Sheet 2'!M$9)","v":0},null,{"$f":"IF(ISERROR('Data Sheet 2'!O$9),0,'Data Sheet 2'!O$9)","v":0},{"$f":"IF(ISERROR('Data Sheet 2'!M$10),0,'Data Sheet 2'!M$10)","v":0},null,{"$f":"IF(ISERROR('Data Sheet 2'!O$10),0,'Data Sheet 2'!O$10)","v":0},null,null,{"$f":"IF(ISERROR('Data Sheet 2'!L$14),0,'Data Sheet 2'!L$14)","v":0},{"$f":"IF(ISERROR('Data Sheet 2'!L$15),0,'Data Sheet 2'!L$15)","v":0},{"$f":"IF(ISERROR('Data Sheet 2'!L$16),0,'Data Sheet 2'!L$16)","v":0},{"$f":"IF(ISERROR('Data Sheet 2'!L$17),0,'Data Sheet 2'!L$17)","v":0},{"$f":"IF(ISERROR('Data Sheet 2'!L$18),0,'Data Sheet 2'!L$18)","v":0},{"$f":"IF(ISERROR('Data Sheet 2'!L$19),0,'Data Sheet 2'!L$19)","v":0},{"$f":"IF(ISERROR('Data Sheet 2'!L$20),0,'Data Sheet 2'!L$20)","v":0},{"$f":"IF(ISERROR('Data Sheet 2'!M$14),0,'Data Sheet 2'!M$14)","v":0},{"$f":"IF(ISERROR('Data Sheet 2'!M$15),0,'Data Sheet 2'!M$15)","v":0},{"$f":"IF(ISERROR('Data Sheet 2'!M$16),0,'Data Sheet 2'!M$16)","v":0},{"$f":"IF(ISERROR('Data Sheet 2'!M$17),0,'Data Sheet 2'!M$17)","v":0},{"$f":"IF(ISERROR('Data Sheet 2'!M$18),0,'Data Sheet 2'!M$18)","v":0},{"$f":"IF(ISERROR('Data Sheet 2'!M$19),0,'Data Sheet 2'!M$19)","v":0},{"$f":"IF(ISERROR('Data Sheet 2'!M$20),0,'Data Sheet 2'!M$20)","v":0},{"$f":"IF(ISERROR('Data Sheet 2'!Q$13),0,'Data Sheet 2'!Q$13)","v":0},{"$f":"IF(ISERROR('Data Sheet 2'!Q$14),0,'Data Sheet 2'!Q$14)","v":0}]
[{"$f":"IF(ISERROR('Data Sheet 3'!D$5),0,'Data Sheet 3'!D$5)","v":0},{"$f":"IF(ISERROR('Data Sheet 3'!D$6),0,'Data Sheet 3'!D$6)","v":0},{"$f":"IF(ISERROR('Data Sheet 3'!G$6),0,'Data Sheet 3'!G$6)","v":0},null,{"$f":"IF(ISERROR('Data Sheet 3'!H$15),0,'Data Sheet 3'!H$15)","v":0},{"$f":"IF(ISERROR('Data Sheet 3'!H$17),0,'Data Sheet 3'!H$17)","v":0},{"$f":"IF(ISERROR('Data Sheet 3'!D$18),0,'Data Sheet 3'!D$18)","v":0},{"$f":"IF(ISERROR('Data Sheet 3'!D$19),0,'Data Sheet 3'!D$19)","v":0},{"$f":"IF(ISERROR('Data Sheet 3'!D$20),0,'Data Sheet 3'!D$20)","v":0},{"$f":"IF(ISERROR('Data Sheet 3'!D$9),0,'Data Sheet 3'!D$9)","v":0},{"$f":"IF(ISERROR('Data Sheet 3'!D$10),0,'Data Sheet 3'!D$10)","v":0},{"$f":"IF(ISERROR('Data Sheet 3'!D$11),0,'Data Sheet 3'!D$11)","v":0},{"$f":"IF(ISERROR('Data Sheet 3'!D$12),0,'Data Sheet 3'!D$12)","v":0},{"$f":"IF(ISERROR('Data Sheet 3'!D$13),0,'Data Sheet 3'!D$13)","v":0},null,null,null,{"$f":"IF(ISERROR('Data Sheet 3'!D$14),0,'Data Sheet 3'!D$14)","v":0},{"$f":"IF(ISERROR('Data Sheet 3'!D$15),0,'Data Sheet 3'!D$15)","v":0},{"$f":"IF(ISERROR('Data Sheet 3'!Q$20),0,'Data Sheet 3'!Q$20)","v":0},{"$f":"IF(ISERROR('Data Sheet 3'!I$9),0,'Data Sheet 3'!I$9)","v":0},{"$f":"IF(ISERROR('Data Sheet 3'!I$10),0,'Data Sheet 3'!I$10)","v":0},{"$f":"IF(ISERROR('Data Sheet 3'!I$11),0,'Data Sheet 3'!I$11)","v":0},{"$f":"IF(ISERROR('Data Sheet 3'!I$12),0,'Data Sheet 3'!I$12)","v":0},{"$f":"IF(ISERROR('Data Sheet 3'!H$20),0,'Data Sheet 3'!H$20)","v":0},{"$f":"IF(ISERROR('Data Sheet 3'!H$19),0,'Data Sheet 3'!H$19)","v":0},{"$f":"IF(ISERROR('Data Sheet 3'!M$5),0,'Data Sheet 3'!M$5)","v":0},{"$f":"IF(ISERROR('Data Sheet 3'!O$5),0,'Data Sheet 3'!O$5)","v":0},0,{"$f":"IF(ISERROR('Data Sheet 3'!N$6),0,'Data Sheet 3'!N$6)","v":0},{"$f":"IF(ISERROR('Data Sheet 3'!M$7),0,'Data Sheet 3'!M$7)","v":0},{"$f":"IF(ISERROR('Data Sheet 3'!O$7),0,'Data Sheet 3'!O$7)","v":0},{"$f":"IF(ISERROR('Data Sheet 3'!M$8),0,'Data Sheet 3'!M$8)","v":0},null,{"$f":"IF(ISERROR('Data Sheet 3'!O$8),0,'Data Sheet 3'!O$8)","v":0},{"$f":"IF(ISERROR('Data Sheet 3'!M$9),0,'Data Sheet 3'!M$9)","v":0},null,{"$f":"IF(ISERROR('Data Sheet 3'!O$9),0,'Data Sheet 3'!O$9)","v":0},{"$f":"IF(ISERROR('Data Sheet 3'!M$10),0,'Data Sheet 3'!M$10)","v":0},null,{"$f":"IF(ISERROR('Data Sheet 3'!O$10),0,'Data Sheet 3'!O$10)","v":0},null,null,{"$f":"IF(ISERROR('Data Sheet 3'!L$14),0,'Data Sheet 3'!L$14)","v":0},{"$f":"IF(ISERROR('Data Sheet 3'!L$15),0,'Data Sheet 3'!L$15)","v":0},{"$f":"IF(ISERROR('Data Sheet 3'!L$16),0,'Data Sheet 3'!L$16)","v":0},{"$f":"IF(ISERROR('Data Sheet 3'!L$17),0,'Data Sheet 3'!L$17)","v":0},{"$f":"IF(ISERROR('Data Sheet 3'!L$18),0,'Data Sheet 3'!L$18)","v":0},{"$f":"IF(ISERROR('Data Sheet 3'!L$19),0,'Data Sheet 3'!L$19)","v":0},{"$f":"IF(ISERROR('Data Sheet 3'!L$20),0,'Data Sheet 3'!L$20)","v":0},{"$f":"IF(ISERROR('Data Sheet 3'!M$14),0,'Data Sheet 3'!M$14)","v":0},{"$f":"IF(ISERROR('Data Sheet 3'!M$15),0,'Data Sheet 3'!M$15)","v":0},{"$f":"IF(ISERROR('Data Sheet 3'!M$16),0,'Data Sheet 3'!M$16)","v":0},{"$f":"IF(ISERROR('Data Sheet 3'!M$17),0,'Data Sheet 3'!M$17)","v":0},{"$f":"IF(ISERROR('Data Sheet 3'!M$18),0,'Data Sheet 3'!M$18)","v":0},{"$f":"IF(ISERROR('Data Sheet 3'!M$19),0,'Data Sheet 3'!M$19)","v":0},{"$f":"IF(ISERROR('Data Sheet 3'!M$20),0,'Data Sheet 3'!M$20)","v":0},{"$f":"IF(ISERROR('Data Sheet 3'!Q$13),0,'Data Sheet 3'!Q$13)","v":0},{"$f":"IF(ISERROR('Data Sheet 3'!Q$14),0,'Data Sheet 3'!Q$14)","v":0}]
[{"$f":"IF(ISERROR('Data Sheet 4'!D$5),0,'Data Sheet 4'!D$5)","v":0},{"$f":"IF(ISERROR('Data Sheet 4'!D$6),0,'Data Sheet 4'!D$6)","v":0},{"$f":"IF(ISERROR('Data Sheet 4'!G$6),0,'Data Sheet 4'!G$6)","v":0},null,{"$f":"IF(ISERROR('Data Sheet 4'!H$15),0,'Data Sheet 4'!H$15)","v":0},{"$f":"IF(ISERROR('Data Sheet 4'!H$17),0,'Data Sheet 4'!H$17)","v":0},{"$f":"IF(ISERROR('Data Sheet 4'!D$18),0,'Data Sheet 4'!D$18)","v":0},{"$f":"IF(ISERROR('Data Sheet 4'!D$19),0,'Data Sheet 4'!D$19)","v":0},{"$f":"IF(ISERROR('Data Sheet 4'!D$20),0,'Data Sheet 4'!D$20)","v":0},{"$f":"IF(ISERROR('Data Sheet 4'!D$9),0,'Data Sheet 4'!D$9)","v":0},{"$f":"IF(ISERROR('Data Sheet 4'!D$10),0,'Data Sheet 4'!D$10)","v":0},{"$f":"IF(ISERROR('Data Sheet 4'!D$11),0,'Data Sheet 4'!D$11)","v":0},{"$f":"IF(ISERROR('Data Sheet 4'!D$12),0,'Data Sheet 4'!D$12)","v":0},{"$f":"IF(ISERROR('Data Sheet 4'!D$13),0,'Data Sheet 4'!D$13)","v":0},null,null,null,{"$f":"IF(ISERROR('Data Sheet 4'!D$14),0,'Data Sheet 4'!D$14)","v":0},{"$f":"IF(ISERROR('Data Sheet 4'!D$15),0,'Data Sheet 4'!D$15)","v":0},{"$f":"IF(ISERROR('Data Sheet 4'!Q$20),0,'Data Sheet 4'!Q$20)","v":0},{"$f":"IF(ISERROR('Data Sheet 4'!I$9),0,'Data Sheet 4'!I$9)","v":0},{"$f":"IF(ISERROR('Data Sheet 4'!I$10),0,'Data Sheet 4'!I$10)","v":0},{"$f":"IF(ISERROR('Data Sheet 4'!I$11),0,'Data Sheet 4'!I$11)","v":0},{"$f":"IF(ISERROR('Data Sheet 4'!I$12),0,'Data Sheet 4'!I$12)","v":0},{"$f":"IF(ISERROR('Data Sheet 4'!H$20),0,'Data Sheet 4'!H$20)","v":0},{"$f":"IF(ISERROR('Data Sheet 4'!H$19),0,'Data Sheet 4'!H$19)","v":0},{"$f":"IF(ISERROR('Data Sheet 4'!M$5),0,'Data Sheet 4'!M$5)","v":0},{"$f":"IF(ISERROR('Data Sheet 4'!O$5),0,'Data Sheet 4'!O$5)","v":0},0,{"$f":"IF(ISERROR('Data Sheet 4'!N$6),0,'Data Sheet 4'!N$6)","v":0},{"$f":"IF(ISERROR('Data Sheet 4'!M$7),0,'Data Sheet 4'!M$7)","v":0},{"$f":"IF(ISERROR('Data Sheet 4'!O$7),0,'Data Sheet 4'!O$7)","v":0},{"$f":"IF(ISERROR('Data Sheet 4'!M$8),0,'Data Sheet 4'!M$8)","v":0},null,{"$f":"IF(ISERROR('Data Sheet 4'!O$8),0,'Data Sheet 4'!O$8)","v":0},{"$f":"IF(ISERROR('Data Sheet 4'!M$9),0,'Data Sheet 4'!M$9)","v":0},null,{"$f":"IF(ISERROR('Data Sheet 4'!O$9),0,'Data Sheet 4'!O$9)","v":0},{"$f":"IF(ISERROR('Data Sheet 4'!M$10),0,'Data Sheet 4'!M$10)","v":0},null,{"$f":"IF(ISERROR('Data Sheet 4'!O$10),0,'Data Sheet 4'!O$10)","v":0},null,null,{"$f":"IF(ISERROR('Data Sheet 4'!L$14),0,'Data Sheet 4'!L$14)","v":0},{"$f":"IF(ISERROR('Data Sheet 4'!L$15),0,'Data Sheet 4'!L$15)","v":0},{"$f":"IF(ISERROR('Data Sheet 4'!L$16),0,'Data Sheet 4'!L$16)","v":0},{"$f":"IF(ISERROR('Data Sheet 4'!L$17),0,'Data Sheet 4'!L$17)","v":0},{"$f":"IF(ISERROR('Data Sheet 4'!L$18),0,'Data Sheet 4'!L$18)","v":0},{"$f":"IF(ISERROR('Data Sheet 4'!L$19),0,'Data Sheet 4'!L$19)","v":0},{"$f":"IF(ISERROR('Data Sheet 4'!L$20),0,'Data Sheet 4'!L$20)","v":0},{"$f":"IF(ISERROR('Data Sheet 4'!M$14),0,'Data Sheet 4'!M$14)","v":0},{"$f":"IF(ISERROR('Data Sheet 4'!M$15),0,'Data Sheet 4'!M$15)","v":0},{"$f":"IF(ISERROR('Data Sheet 4'!M$16),0,'Data Sheet 4'!M$16)","v":0},{"$f":"IF(ISERROR('Data Sheet 4'!M$17),0,'Data Sheet 4'!M$17)","v":0},{"$f":"IF(ISERROR('Data Sheet 4'!M$18),0,'Data Sheet 4'!M$18)","v":0},{"$f":"IF(ISERROR('Data Sheet 4'!M$19),0,'Data Sheet 4'!M$19)","v":0},{"$f":"IF(ISERROR('Data Sheet 4'!M$20),0,'Data Sheet 4'!M$20)","v":0},{"$f":"IF(ISERROR('Data Sheet 4'!Q$13),0,'Data Sheet 4'!Q$13)","v":0},{"$f":"IF(ISERROR('Data Sheet 4'!Q$14),0,'Data Sheet 4'!Q$14)","v":0}]
[{"$f":"IF(ISERROR('Data Sheet 5'!D$5),0,'Data Sheet 5'!D$5)","v":0},{"$f":"IF(ISERROR('Data Sheet 5'!D$6),0,'Data Sheet 5'!D$6)","v":0},{"$f":"IF(ISERROR('Data Sheet 5'!G$6),0,'Data Sheet 5'!G$6)","v":0},null,{"$f":"IF(ISERROR('Data Sheet 5'!H$15),0,'Data Sheet 5'!H$15)","v":0},{"$f":"IF(ISERROR('Data Sheet 5'!H$17),0,'Data Sheet 5'!H$17)","v":0},{"$f":"IF(ISERROR('Data Sheet 5'!D$18),0,'Data Sheet 5'!D$18)","v":0},{"$f":"IF(ISERROR('Data Sheet 5'!D$19),0,'Data Sheet 5'!D$19)","v":0},{"$f":"IF(ISERROR('Data Sheet 5'!D$20),0,'Data Sheet 5'!D$20)","v":0},{"$f":"IF(ISERROR('Data Sheet 5'!D$9),0,'Data Sheet 5'!D$9)","v":0},{"$f":"IF(ISERROR('Data Sheet 5'!D$10),0,'Data Sheet 5'!D$10)","v":0},{"$f":"IF(ISERROR('Data Sheet 5'!D$11),0,'Data Sheet 5'!D$11)","v":0},{"$f":"IF(ISERROR('Data Sheet 5'!D$12),0,'Data Sheet 5'!D$12)","v":0},{"$f":"IF(ISERROR('Data Sheet 5'!D$13),0,'Data Sheet 5'!D$13)","v":0},null,null,null,{"$f":"IF(ISERROR('Data Sheet 5'!D$14),0,'Data Sheet 5'!D$14)","v":0},{"$f":"IF(ISERROR('Data Sheet 5'!D$15),0,'Data Sheet 5'!D$15)","v":0},{"$f":"IF(ISERROR('Data Sheet 5'!Q$20),0,'Data Sheet 5'!Q$20)","v":0},{"$f":"IF(ISERROR('Data Sheet 5'!I$9),0,'Data Sheet 5'!I$9)","v":0},{"$f":"IF(ISERROR('Data Sheet 5'!I$10),0,'Data Sheet 5'!I$10)","v":0},{"$f":"IF(ISERROR('Data Sheet 5'!I$11),0,'Data Sheet 5'!I$11)","v":0},{"$f":"IF(ISERROR('Data Sheet 5'!I$12),0,'Data Sheet 5'!I$12)","v":0},{"$f":"IF(ISERROR('Data Sheet 5'!H$20),0,'Data Sheet 5'!H$20)","v":0},{"$f":"IF(ISERROR('Data Sheet 5'!H$19),0,'Data Sheet 5'!H$19)","v":0},{"$f":"IF(ISERROR('Data Sheet 5'!M$5),0,'Data Sheet 5'!M$5)","v":0},{"$f":"IF(ISERROR('Data Sheet 5'!O$5),0,'Data Sheet 5'!O$5)","v":0},0,{"$f":"IF(ISERROR('Data Sheet 5'!N$6),0,'Data Sheet 5'!N$6)","v":0},{"$f":"IF(ISERROR('Data Sheet 5'!M$7),0,'Data Sheet 5'!M$7)","v":0},{"$f":"IF(ISERROR('Data Sheet 5'!O$7),0,'Data Sheet 5'!O$7)","v":0},{"$f":"IF(ISERROR('Data Sheet 5'!M$8),0,'Data Sheet 5'!M$8)","v":0},null,{"$f":"IF(ISERROR('Data Sheet 5'!O$8),0,'Data Sheet 5'!O$8)","v":0},{"$f":"IF(ISERROR('Data Sheet 5'!M$9),0,'Data Sheet 5'!M$9)","v":0},null,{"$f":"IF(ISERROR('Data Sheet 5'!O$9),0,'Data Sheet 5'!O$9)","v":0},{"$f":"IF(ISERROR('Data Sheet 5'!M$10),0,'Data Sheet 5'!M$10)","v":0},null,{"$f":"IF(ISERROR('Data Sheet 5'!O$10),0,'Data Sheet 5'!O$10)","v":0},null,null,{"$f":"IF(ISERROR('Data Sheet 5'!L$14),0,'Data Sheet 5'!L$14)","v":0},{"$f":"IF(ISERROR('Data Sheet 5'!L$15),0,'Data Sheet 5'!L$15)","v":0},{"$f":"IF(ISERROR('Data Sheet 5'!L$16),0,'Data Sheet 5'!L$16)","v":0},{"$f":"IF(ISERROR('Data Sheet 5'!L$17),0,'Data Sheet 5'!L$17)","v":0},{"$f":"IF(ISERROR('Data Sheet 5'!L$18),0,'Data Sheet 5'!L$18)","v":0},{"$f":"IF(ISERROR('Data Sheet 5'!L$19),0,'Data Sheet 5'!L$19)","v":0},{"$f":"IF(ISERROR('Data Sheet 5'!L$20),0,'Data Sheet 5'!L$20)","v":0},{"$f":"IF(ISERROR('Data Sheet 5'!M$14),0,'Data Sheet 5'!M$14)","v":0},{"$f":"IF(ISERROR('Data Sheet 5'!M$15),0,'Data Sheet 5'!M$15)","v":0},{"$f":"IF(ISERROR('Data Sheet 5'!M$16),0,'Data Sheet 5'!M$16)","v":0},{"$f":"IF(ISERROR('Data Sheet 5'!M$17),0,'Data Sheet 5'!M$17)","v":0},{"$f":"IF(ISERROR('Data Sheet 5'!M$18),0,'Data Sheet 5'!M$18)","v":0},{"$f":"IF(ISERROR('Data Sheet 5'!M$19),0,'Data Sheet 5'!M$19)","v":0},{"$f":"IF(ISERROR('Data Sheet 5'!M$20),0,'Data Sheet 5'!M$20)","v":0},{"$f":"IF(ISERROR('Data Sheet 5'!Q$13),0,'Data Sheet 5'!Q$13)","v":0},{"$f":"IF(ISERROR('Data Sheet 5'!Q$14),0,'Data Sheet 5'!Q$14)","v":0}]
[{"$f":"IF(ISERROR('Data Sheet 6'!D$5),0,'Data Sheet 6'!D$5)","v":0},{"$f":"IF(ISERROR('Data Sheet 6'!D$6),0,'Data Sheet 6'!D$6)","v":0},{"$f":"IF(ISERROR('Data Sheet 6'!G$6),0,'Data Sheet 6'!G$6)","v":0},null,{"$f":"IF(ISERROR('Data Sheet 6'!H$15),0,'Data Sheet 6'!H$15)","v":0},{"$f":"IF(ISERROR('Data Sheet 6'!H$17),0,'Data Sheet 6'!H$17)","v":0},{"$f":"IF(ISERROR('Data Sheet 6'!D$18),0,'Data Sheet 6'!D$18)","v":0},{"$f":"IF(ISERROR('Data Sheet 6'!D$19),0,'Data Sheet 6'!D$19)","v":0},{"$f":"IF(ISERROR('Data Sheet 6'!D$20),0,'Data Sheet 6'!D$20)","v":0},{"$f":"IF(ISERROR('Data Sheet 6'!D$9),0,'Data Sheet 6'!D$9)","v":0},{"$f":"IF(ISERROR('Data Sheet 6'!D$10),0,'Data Sheet 6'!D$10)","v":0},{"$f":"IF(ISERROR('Data Sheet 6'!D$11),0,'Data Sheet 6'!D$11)","v":0},{"$f":"IF(ISERROR('Data Sheet 6'!D$12),0,'Data Sheet 6'!D$12)","v":0},{"$f":"IF(ISERROR('Data Sheet 6'!D$13),0,'Data Sheet 6'!D$13)","v":0},null,null,null,{"$f":"IF(ISERROR('Data Sheet 6'!D$14),0,'Data Sheet 6'!D$14)","v":0},{"$f":"IF(ISERROR('Data Sheet 6'!D$15),0,'Data Sheet 6'!D$15)","v":0},{"$f":"IF(ISERROR('Data Sheet 6'!Q$20),0,'Data Sheet 6'!Q$20)","v":0},{"$f":"IF(ISERROR('Data Sheet 6'!I$9),0,'Data Sheet 6'!I$9)","v":0},{"$f":"IF(ISERROR('Data Sheet 6'!I$10),0,'Data Sheet 6'!I$10)","v":0},{"$f":"IF(ISERROR('Data Sheet 6'!I$11),0,'Data Sheet 6'!I$11)","v":0},{"$f":"IF(ISERROR('Data Sheet 6'!I$12),0,'Data Sheet 6'!I$12)","v":0},{"$f":"IF(ISERROR('Data Sheet 6'!H$20),0,'Data Sheet 6'!H$20)","v":0},{"$f":"IF(ISERROR('Data Sheet 6'!H$19),0,'Data Sheet 6'!H$19)","v":0},{"$f":"IF(ISERROR('Data Sheet 6'!M$5),0,'Data Sheet 6'!M$5)","v":0},{"$f":"IF(ISERROR('Data Sheet 6'!O$5),0,'Data Sheet 6'!O$5)","v":0},0,{"$f":"IF(ISERROR('Data Sheet 6'!N$6),0,'Data Sheet 6'!N$6)","v":0},{"$f":"IF(ISERROR('Data Sheet 6'!M$7),0,'Data Sheet 6'!M$7)","v":0},{"$f":"IF(ISERROR('Data Sheet 6'!O$7),0,'Data Sheet 6'!O$7)","v":0},{"$f":"IF(ISERROR('Data Sheet 6'!M$8),0,'Data Sheet 6'!M$8)","v":0},null,{"$f":"IF(ISERROR('Data Sheet 6'!O$8),0,'Data Sheet 6'!O$8)","v":0},{"$f":"IF(ISERROR('Data Sheet 6'!M$9),0,'Data Sheet 6'!M$9)","v":0},null,{"$f":"IF(ISERROR('Data Sheet 6'!O$9),0,'Data Sheet 6'!O$9)","v":0},{"$f":"IF(ISERROR('Data Sheet 6'!M$10),0,'Data Sheet 6'!M$10)","v":0},null,{"$f":"IF(ISERROR('Data Sheet 6'!O$10),0,'Data Sheet 6'!O$10)","v":0},null,null,{"$f":"IF(ISERROR('Data Sheet 6'!L$14),0,'Data Sheet 6'!L$14)","v":0},{"$f":"IF(ISERROR('Data Sheet 6'!L$15),0,'Data Sheet 6'!L$15)","v":0},{"$f":"IF(ISERROR('Data Sheet 6'!L$16),0,'Data Sheet 6'!L$16)","v":0},{"$f":"IF(ISERROR('Data Sheet 6'!L$17),0,'Data Sheet 6'!L$17)","v":0},{"$f":"IF(ISERROR('Data Sheet 6'!L$18),0,'Data Sheet 6'!L$18)","v":0},{"$f":"IF(ISERROR('Data Sheet 6'!L$19),0,'Data Sheet 6'!L$19)","v":0},{"$f":"IF(ISERROR('Data Sheet 6'!L$20),0,'Data Sheet 6'!L$20)","v":0},{"$f":"IF(ISERROR('Data Sheet 6'!M$14),0,'Data Sheet 6'!M$14)","v":0},{"$f":"IF(ISERROR('Data Sheet 6'!M$15),0,'Data Sheet 6'!M$15)","v":0},{"$f":"IF(ISERROR('Data Sheet 6'!M$16),0,'Data Sheet 6'!M$16)","v":0},{"$f":"IF(ISERROR('Data Sheet 6'!M$17),0,'Data Sheet 6'!M$17)","v":0},{"$f":"IF(ISERROR('Data Sheet 6'!M$18),0,'Data Sheet 6'!M$18)","v":0},{"$f":"IF(ISERROR('Data Sheet 6'!M$19),0,'Data Sheet 6'!M$19)","v":0},{"$f":"IF(ISERROR('Data Sheet 6'!M$20),0,'Data Sheet 6'!M$20)","v":0},{"$f":"IF(ISERROR('Data Sheet 6'!Q$13),0,'Data Sheet 6'!Q$13)","v":0},{"$f":"IF(ISERROR('Data Sheet 6'!Q$14),0,'Data Sheet 6'!Q$14)","v":0}]
[{"$f":"IF(ISERROR('Data Sheet 7'!D$5),0,'Data Sheet 7'!D$5)","v":0},{"$f":"IF(ISERROR('Data Sheet 7'!D$6),0,'Data Sheet 7'!D$6)","v":0},{"$f":"IF(ISERROR('Data Sheet 7'!G$6),0,'Data Sheet 7'!G$6)","v":0},null,{"$f":"IF(ISERROR('Data Sheet 7'!H$15),0,'Data Sheet 7'!H$15)","v":0},{"$f":"IF(ISERROR('Data Sheet 7'!H$17),0,'Data Sheet 7'!H$17)","v":0},{"$f":"IF(ISERROR('Data Sheet 7'!D$18),0,'Data Sheet 7'!D$18)","v":0},{"$f":"IF(ISERROR('Data Sheet 7'!D$19),0,'Data Sheet 7'!D$19)","v":0},{"$f":"IF(ISERROR('Data Sheet 7'!D$20),0,'Data Sheet 7'!D$20)","v":0},{"$f":"IF(ISERROR('Data Sheet 7'!D$9),0,'Data Sheet 7'!D$9)","v":0},{"$f":"IF(ISERROR('Data Sheet 7'!D$10),0,'Data Sheet 7'!D$10)","v":0},{"$f":"IF(ISERROR('Data Sheet 7'!D$11),0,'Data Sheet 7'!D$11)","v":0},{"$f":"IF(ISERROR('Data Sheet 7'!D$12),0,'Data Sheet 7'!D$12)","v":0},{"$f":"IF(ISERROR('Data Sheet 7'!D$13),0,'Data Sheet 7'!D$13)","v":0},null,null,null,{"$f":"IF(ISERROR('Data Sheet 7'!D$14),0,'Data Sheet 7'!D$14)","v":0},{"$f":"IF(ISERROR('Data Sheet 7'!D$15),0,'Data Sheet 7'!D$15)","v":0},{"$f":"IF(ISERROR('Data Sheet 7'!Q$20),0,'Data Sheet 7'!Q$20)","v":0},{"$f":"IF(ISERROR('Data Sheet 7'!I$9),0,'Data Sheet 7'!I$9)","v":0},{"$f":"IF(ISERROR('Data Sheet 7'!I$10),0,'Data Sheet 7'!I$10)","v":0},{"$f":"IF(ISERROR('Data Sheet 7'!I$11),0,'Data Sheet 7'!I$11)","v":0},{"$f":"IF(ISERROR('Data Sheet 7'!I$12),0,'Data Sheet 7'!I$12)","v":0},{"$f":"IF(ISERROR('Data Sheet 7'!H$20),0,'Data Sheet 7'!H$20)","v":0},{"$f":"IF(ISERROR('Data Sheet 7'!H$19),0,'Data Sheet 7'!H$19)","v":0},{"$f":"IF(ISERROR('Data Sheet 7'!M$5),0,'Data Sheet 7'!M$5)","v":0},{"$f":"IF(ISERROR('Data Sheet 7'!O$5),0,'Data Sheet 7'!O$5)","v":0},0,{"$f":"IF(ISERROR('Data Sheet 7'!N$6),0,'Data Sheet 7'!N$6)","v":0},{"$f":"IF(ISERROR('Data Sheet 7'!M$7),0,'Data Sheet 7'!M$7)","v":0},{"$f":"IF(ISERROR('Data Sheet 7'!O$7),0,'Data Sheet 7'!O$7)","v":0},{"$f":"IF(ISERROR('Data Sheet 7'!M$8),0,'Data Sheet 7'!M$8)","v":0},null,{"$f":"IF(ISERROR('Data Sheet 7'!O$8),0,'Data Sheet 7'!O$8)","v":0},{"$f":"IF(ISERROR('Data Sheet 7'!M$9),0,'Data Sheet 7'!M$9)","v":0},null,{"$f":"IF(ISERROR('Data Sheet 7'!O$9),0,'Data Sheet 7'!O$9)","v":0},{"$f":"IF(ISERROR('Data Sheet 7'!M$10),0,'Data Sheet 7'!M$10)","v":0},null,{"$f":"IF(ISERROR('Data Sheet 7'!O$10),0,'Data Sheet 7'!O$10)","v":0},null,null,{"$f":"IF(ISERROR('Data Sheet 7'!L$14),0,'Data Sheet 7'!L$14)","v":0},{"$f":"IF(ISERROR('Data Sheet 7'!L$15),0,'Data Sheet 7'!L$15)","v":0},{"$f":"IF(ISERROR('Data Sheet 7'!L$16),0,'Data Sheet 7'!L$16)","v":0},{"$f":"IF(ISERROR('Data Sheet 7'!L$17),0,'Data Sheet 7'!L$17)","v":0},{"$f":"IF(ISERROR('Data Sheet 7'!L$18),0,'Data Sheet 7'!L$18)","v":0},{"$f":"IF(ISERROR('Data Sheet 7'!L$19),0,'Data Sheet 7'!L$19)","v":0},{"$f":"IF(ISERROR('Data Sheet 7'!L$20),0,'Data Sheet 7'!L$20)","v":0},{"$f":"IF(ISERROR('Data Sheet 7'!M$14),0,'Data Sheet 7'!M$14)","v":0},{"$f":"IF(ISERROR('Data Sheet 7'!M$15),0,'Data Sheet 7'!M$15)","v":0},{"$f":"IF(ISERROR('Data Sheet 7'!M$16),0,'Data Sheet 7'!M$16)","v":0},{"$f":"IF(ISERROR('Data Sheet 7'!M$17),0,'Data Sheet 7'!M$17)","v":0},{"$f":"IF(ISERROR('Data Sheet 7'!M$18),0,'Data Sheet 7'!M$18)","v":0},{"$f":"IF(ISERROR('Data Sheet 7'!M$19),0,'Data Sheet 7'!M$19)","v":0},{"$f":"IF(ISERROR('Data Sheet 7'!M$20),0,'Data Sheet 7'!M$20)","v":0},{"$f":"IF(ISERROR('Data Sheet 7'!Q$13),0,'Data Sheet 7'!Q$13)","v":0},{"$f":"IF(ISERROR('Data Sheet 7'!Q$14),0,'Data Sheet 7'!Q$14)","v":0}]
[{"$f":"IF(ISERROR('Data Sheet 8'!D$5),0,'Data Sheet 8'!D$5)","v":0},{"$f":"IF(ISERROR('Data Sheet 8'!D$6),0,'Data Sheet 8'!D$6)","v":0},{"$f":"IF(ISERROR('Data Sheet 8'!G$6),0,'Data Sheet 8'!G$6)","v":0},null,{"$f":"IF(ISERROR('Data Sheet 8'!H$15),0,'Data Sheet 8'!H$15)","v":0},{"$f":"IF(ISERROR('Data Sheet 8'!H$17),0,'Data Sheet 8'!H$17)","v":0},{"$f":"IF(ISERROR('Data Sheet 8'!D$18),0,'Data Sheet 8'!D$18)","v":0},{"$f":"IF(ISERROR('Data Sheet 8'!D$19),0,'Data Sheet 8'!D$19)","v":0},{"$f":"IF(ISERROR('Data Sheet 8'!D$20),0,'Data Sheet 8'!D$20)","v":0},{"$f":"IF(ISERROR('Data Sheet 8'!D$9),0,'Data Sheet 8'!D$9)","v":0},{"$f":"IF(ISERROR('Data Sheet 8'!D$10),0,'Data Sheet 8'!D$10)","v":0},{"$f":"IF(ISERROR('Data Sheet 8'!D$11),0,'Data Sheet 8'!D$11)","v":0},{"$f":"IF(ISERROR('Data Sheet 8'!D$12),0,'Data Sheet 8'!D$12)","v":0},{"$f":"IF(ISERROR('Data Sheet 8'!D$13),0,'Data Sheet 8'!D$13)","v":0},null,null,null,{"$f":"IF(ISERROR('Data Sheet 8'!D$14),0,'Data Sheet 8'!D$14)","v":0},{"$f":"IF(ISERROR('Data Sheet 8'!D$15),0,'Data Sheet 8'!D$15)","v":0},{"$f":"IF(ISERROR('Data Sheet 8'!Q$20),0,'Data Sheet 8'!Q$20)","v":0},{"$f":"IF(ISERROR('Data Sheet 8'!I$9),0,'Data Sheet 8'!I$9)","v":0},{"$f":"IF(ISERROR('Data Sheet 8'!I$10),0,'Data Sheet 8'!I$10)","v":0},{"$f":"IF(ISERROR('Data Sheet 8'!I$11),0,'Data Sheet 8'!I$11)","v":0},{"$f":"IF(ISERROR('Data Sheet 8'!I$12),0,'Data Sheet 8'!I$12)","v":0},{"$f":"IF(ISERROR('Data Sheet 8'!H$20),0,'Data Sheet 8'!H$20)","v":0},{"$f":"IF(ISERROR('Data Sheet 8'!H$19),0,'Data Sheet 8'!H$19)","v":0},{"$f":"IF(ISERROR('Data Sheet 8'!M$5),0,'Data Sheet 8'!M$5)","v":0},{"$f":"IF(ISERROR('Data Sheet 8'!O$5),0,'Data Sheet 8'!O$5)","v":0},0,{"$f":"IF(ISERROR('Data Sheet 8'!N$6),0,'Data Sheet 8'!N$6)","v":0},{"$f":"IF(ISERROR('Data Sheet 8'!M$7),0,'Data Sheet 8'!M$7)","v":0},{"$f":"IF(ISERROR('Data Sheet 8'!O$7),0,'Data Sheet 8'!O$7)","v":0},{"$f":"IF(ISERROR('Data Sheet 8'!M$8),0,'Data Sheet 8'!M$8)","v":0},null,{"$f":"IF(ISERROR('Data Sheet 8'!O$8),0,'Data Sheet 8'!O$8)","v":0},{"$f":"IF(ISERROR('Data Sheet 8'!M$9),0,'Data Sheet 8'!M$9)","v":0},null,{"$f":"IF(ISERROR('Data Sheet 8'!O$9),0,'Data Sheet 8'!O$9)","v":0},{"$f":"IF(ISERROR('Data Sheet 8'!M$10),0,'Data Sheet 8'!M$10)","v":0},null,{"$f":"IF(ISERROR('Data Sheet 8'!O$10),0,'Data Sheet 8'!O$10)","v":0},null,null,{"$f":"IF(ISERROR('Data Sheet 8'!L$14),0,'Data Sheet 8'!L$14)","v":0},{"$f":"IF(ISERROR('Data Sheet 8'!L$15),0,'Data Sheet 8'!L$15)","v":0},{"$f":"IF(ISERROR('Data Sheet 8'!L$16),0,'Data Sheet 8'!L$16)","v":0},{"$f":"IF(ISERROR('Data Sheet 8'!L$17),0,'Data Sheet 8'!L$17)","v":0},{"$f":"IF(ISERROR('Data Sheet 8'!L$18),0,'Data Sheet 8'!L$18)","v":0},{"$f":"IF(ISERROR('Data Sheet 8'!L$19),0,'Data Sheet 8'!L$19)","v":0},{"$f":"IF(ISERROR('Data Sheet 8'!L$20),0,'Data Sheet 8'!L$20)","v":0},{"$f":"IF(ISERROR('Data Sheet 8'!M$14),0,'Data Sheet 8'!M$14)","v":0},{"$f":"IF(ISERROR('Data Sheet 8'!M$15),0,'Data Sheet 8'!M$15)","v":0},{"$f":"IF(ISERROR('Data Sheet 8'!M$16),0,'Data Sheet 8'!M$16)","v":0},{"$f":"IF(ISERROR('Data Sheet 8'!M$17),0,'Data Sheet 8'!M$17)","v":0},{"$f":"IF(ISERROR('Data Sheet 8'!M$18),0,'Data Sheet 8'!M$18)","v":0},{"$f":"IF(ISERROR('Data Sheet 8'!M$19),0,'Data Sheet 8'!M$19)","v":0},{"$f":"IF(ISERROR('Data Sheet 8'!M$20),0,'Data Sheet 8'!M$20)","v":0},{"$f":"IF(ISERROR('Data Sheet 8'!Q$13),0,'Data Sheet 8'!Q$13)","v":0},{"$f":"IF(ISERROR('Data Sheet 8'!Q$14),0,'Data Sheet 8'!Q$14)","v":0}]
[{"$f":"IF(ISERROR('Data Sheet 9'!D$5),0,'Data Sheet 9'!D$5)","v":0},{"$f":"IF(ISERROR('Data Sheet 9'!D$6),0,'Data Sheet 9'!D$6)","v":0},{"$f":"IF(ISERROR('Data Sheet 9'!G$6),0,'Data Sheet 9'!G$6)","v":0},null,{"$f":"IF(ISERROR('Data Sheet 9'!H$15),0,'Data Sheet 9'!H$15)","v":0},{"$f":"IF(ISERROR('Data Sheet 9'!H$17),0,'Data Sheet 9'!H$17)","v":0},{"$f":"IF(ISERROR('Data Sheet 9'!D$18),0,'Data Sheet 9'!D$18)","v":0},{"$f":"IF(ISERROR('Data Sheet 9'!D$19),0,'Data Sheet 9'!D$19)","v":0},{"$f":"IF(ISERROR('Data Sheet 9'!D$20),0,'Data Sheet 9'!D$20)","v":0},{"$f":"IF(ISERROR('Data Sheet 9'!D$9),0,'Data Sheet 9'!D$9)","v":0},{"$f":"IF(ISERROR('Data Sheet 9'!D$10),0,'Data Sheet 9'!D$10)","v":0},{"$f":"IF(ISERROR('Data Sheet 9'!D$11),0,'Data Sheet 9'!D$11)","v":0},{"$f":"IF(ISERROR('Data Sheet 9'!D$12),0,'Data Sheet 9'!D$12)","v":0},{"$f":"IF(ISERROR('Data Sheet 9'!D$13),0,'Data Sheet 9'!D$13)","v":0},null,null,null,{"$f":"IF(ISERROR('Data Sheet 9'!D$14),0,'Data Sheet 9'!D$14)","v":0},{"$f":"IF(ISERROR('Data Sheet 9'!D$15),0,'Data Sheet 9'!D$15)","v":0},{"$f":"IF(ISERROR('Data Sheet 9'!Q$20),0,'Data Sheet 9'!Q$20)","v":0},{"$f":"IF(ISERROR('Data Sheet 9'!I$9),0,'Data Sheet 9'!I$9)","v":0},{"$f":"IF(ISERROR('Data Sheet 9'!I$10),0,'Data Sheet 9'!I$10)","v":0},{"$f":"IF(ISERROR('Data Sheet 9'!I$11),0,'Data Sheet 9'!I$11)","v":0},{"$f":"IF(ISERROR('Data Sheet 9'!I$12),0,'Data Sheet 9'!I$12)","v":0},{"$f":"IF(ISERROR('Data Sheet 9'!H$20),0,'Data Sheet 9'!H$20)","v":0},{"$f":"IF(ISERROR('Data Sheet 9'!H$19),0,'Data Sheet 9'!H$19)","v":0},{"$f":"IF(ISERROR('Data Sheet 9'!M$5),0,'Data Sheet 9'!M$5)","v":0},{"$f":"IF(ISERROR('Data Sheet 9'!O$5),0,'Data Sheet 9'!O$5)","v":0},0,{"$f":"IF(ISERROR('Data Sheet 9'!N$6),0,'Data Sheet 9'!N$6)","v":0},{"$f":"IF(ISERROR('Data Sheet 9'!M$7),0,'Data Sheet 9'!M$7)","v":0},{"$f":"IF(ISERROR('Data Sheet 9'!O$7),0,'Data Sheet 9'!O$7)","v":0},{"$f":"IF(ISERROR('Data Sheet 9'!M$8),0,'Data Sheet 9'!M$8)","v":0},null,{"$f":"IF(ISERROR('Data Sheet 9'!O$8),0,'Data Sheet 9'!O$8)","v":0},{"$f":"IF(ISERROR('Data Sheet 9'!M$9),0,'Data Sheet 9'!M$9)","v":0},null,{"$f":"IF(ISERROR('Data Sheet 9'!O$9),0,'Data Sheet 9'!O$9)","v":0},{"$f":"IF(ISERROR('Data Sheet 9'!M$10),0,'Data Sheet 9'!M$10)","v":0},null,{"$f":"IF(ISERROR('Data Sheet 9'!O$10),0,'Data Sheet 9'!O$10)","v":0},null,null,{"$f":"IF(ISERROR('Data Sheet 9'!L$14),0,'Data Sheet 9'!L$14)","v":0},{"$f":"IF(ISERROR('Data Sheet 9'!L$15),0,'Data Sheet 9'!L$15)","v":0},{"$f":"IF(ISERROR('Data Sheet 9'!L$16),0,'Data Sheet 9'!L$16)","v":0},{"$f":"IF(ISERROR('Data Sheet 9'!L$17),0,'Data Sheet 9'!L$17)","v":0},{"$f":"IF(ISERROR('Data Sheet 9'!L$18),0,'Data Sheet 9'!L$18)","v":0},{"$f":"IF(ISERROR('Data Sheet 9'!L$19),0,'Data Sheet 9'!L$19)","v":0},{"$f":"IF(ISERROR('Data Sheet 9'!L$20),0,'Data Sheet 9'!L$20)","v":0},{"$f":"IF(ISERROR('Data Sheet 9'!M$14),0,'Data Sheet 9'!M$14)","v":0},{"$f":"IF(ISERROR('Data Sheet 9'!M$15),0,'Data Sheet 9'!M$15)","v":0},{"$f":"IF(ISERROR('Data Sheet 9'!M$16),0,'Data Sheet 9'!M$16)","v":0},{"$f":"IF(ISERROR('Data Sheet 9'!M$17),0,'Data Sheet 9'!M$17)","v":0},{"$f":"IF(ISERROR('Data Sheet 9'!M$18),0,'Data Sheet 9'!M$18)","v":0},{"$f":"IF(ISERROR('Data Sheet 9'!M$19),0,'Data Sheet 9'!M$19)","v":0},{"$f":"IF(ISERROR('Data Sheet 9'!M$20),0,'Data Sheet 9'!M$20)","v":0},{"$f":"IF(ISERROR('Data Sheet 9'!Q$13),0,'Data Sheet 9'!Q$13)","v":0},{"$f":"IF(ISERROR('Data Sheet 9'!Q$14),0,'Data Sheet 9'!Q$14)","v":0}]

{"sheet":"Version","index":11,"n_rows":4,"n_cols":2,"rows_kept":4,"cut":false,"hidden":false,"merged":[]}
[]
["Version Date:","Comments"]
["2011-12-21","- fixed format rounding in run data fields for all 3 runs"]
["2012-03-26","- now has nine runs"]